fUST/lending_fUST_20240915
["ID","MTS","AMOUNT","RATE_DAILY","PERIOD"]
[338181432,1726366252076,-2454.79,0.00021917,2]
[338181433,1726366252086,-500.0,0.00021917,2]
[338181434,1726366252096,-500.0,0.00021917,2]
[338181435,1726366252106,-3413.0,0.00021917,2]
[338181436,1726366252115,-500.0,0.00021917,2]
[338181437,1726366252125,-3692.26,0.00021917,2]
[338181438,1726366252135,-532.33,0.00021917,2]
[338181439,1726366252145,-3306.43,0.00021917,2]
[338181440,1726366252154,-2496.33,0.00021917,2]
[338181441,1726366252164,-500.0,0.00021917,2]
[338181442,1726366252173,-500.0,0.00021917,2]
[338181443,1726366252183,-1375.72,0.00021917,2]
[338181444,1726366252193,-1493.62,0.00021917,2]
[338181445,1726366252203,-500.0,0.00021917,2]
[338181446,1726366252213,-500.0,0.00021917,2]
[338181447,1726366252222,-1345.66,0.00021917,2]
[338181448,1726366252232,-500.0,0.00021917,2]
[338181449,1726366252242,-566.18,0.00021917,2]
[338181450,1726366252252,-1969.75,0.00021917,2]
[338181451,1726366252265,-500.0,0.00021917,2]
[338181452,1726366252274,-500.0,0.00021917,2]
[338181453,1726366252284,-783.3,0.00021917,2]
[338181454,1726366252294,-500.0,0.00021917,2]
[338181455,1726366252304,-500.0,0.00021917,2]
[338181456,1726366252315,-500.0,0.00021917,2]
[338181457,1726366252325,-500.0,0.00021917,2]
[338181458,1726366252335,-2987.83,0.00021917,2]
[338181459,1726366252345,-500.0,0.00021917,2]
[338181460,1726366252354,-500.0,0.00021917,2]
[338181461,1726366252363,-773.53,0.00021917,2]
[338181462,1726366252373,-7456.85,0.00021917,2]
[338181463,1726366252383,-500.0,0.00021917,2]
[338181464,1726366252393,-500.0,0.00021917,2]
[338181465,1726366252404,-500.0,0.00021917,2]
[338181466,1726366252414,-596.31473684,0.00021917,2]
[338181467,1726366252425,-601.72,0.00021917,2]
[338181468,1726366252434,-500.0,0.00021917,2]
[338181469,1726366252444,-508.87966621,0.00021917,2]
[338181470,1726366252453,-1438.06,0.00021917,2]
[338181471,1726366252463,-500.0,0.00021917,2]
[338181472,1726366252476,-1428.9,0.00021917,2]
[338181473,1726366252488,-1969.73,0.00021917,2]
[338181474,1726366252498,-500.0,0.00021917,2]
[338181475,1726366252507,-3381.59,0.00021917,2]
[338181476,1726366252516,-47201.94,0.00021917,2]
[338181477,1726366252527,-500.0,0.00021917,2]
[338181478,1726366252536,-500.0,0.00021917,2]
[338181479,1726366252549,-2181.48,0.00021917,2]
[338181480,1726366252558,-500.0,0.00021917,2]
[338181481,1726366252569,-521.83027821,0.00021917,2]
[338181482,1726366252578,-500.0,0.00021917,2]
[338181483,1726366252589,-500.0,0.00021917,2]
[338181484,1726366252608,-500.0,0.00021917,2]
[338181485,1726366252622,-500.84182113,0.00021917,2]
[338181486,1726366252632,-1819.56,0.00021917,2]
[338181487,1726366252643,-2485.45,0.00021917,2]
[338181488,1726366252654,-500.0,0.00021917,2]
[338181489,1726366252664,-531.55130919,0.00021917,2]
[338181490,1726366252674,-500.0,0.00021917,2]
[338181491,1726366252684,-500.0,0.00021917,2]
[338181492,1726366252694,-695.77,0.00021917,2]
[338181493,1726366252704,-939.15,0.00021917,2]
[338181494,1726366252717,-286.60829344,0.00021917,2]
[338181495,1726366252728,-2265.14,0.00021917,2]
[338181496,1726366252739,-705.67,0.00021917,2]
[338181497,1726366252753,-500.0,0.00021917,2]
[338181498,1726366252765,-500.0,0.00021917,2]
[338181499,1726366252775,-2212.9,0.00021917,2]
[338181500,1726366252788,-500.0,0.00021917,2]
[338181501,1726366252798,-772.46,0.00021917,2]
[338181502,1726366252808,-500.0,0.00021917,2]
[338181503,1726366252820,-511.25581086,0.00021917,2]
[338181504,1726366252832,-500.0,0.00021917,2]
[338181505,1726366252842,-4000.02,0.00021917,2]
[338181506,1726366252852,-1248.0,0.00021917,2]
[338181507,1726366252862,-2961.34,0.00021917,2]
[338181508,1726366252872,-500.0,0.00021917,2]
[338181509,1726366252883,-500.0,0.00021917,2]
[338181510,1726366252894,-500.0,0.00021917,2]
[338181511,1726366252904,-522.8833549,0.00021917,2]
[338181512,1726366252914,-918.66,0.00021917,2]
[338181513,1726366252924,-741.15,0.00021917,2]
[338181514,1726366252936,-500.0,0.00021917,2]
[338181515,1726366252947,-500.0,0.00021917,2]
[338181516,1726366252957,-500.0,0.00021917,2]
[338181517,1726366252968,-1147.73441436,0.00021917,2]
[338181520,1726366447868,202.43519,0.00013699,2]
[338181521,1726366459702,2500.0,0.00012293,2]
[338181528,1726367150628,203.559831,0.00013699,2]
[338181533,1726367301373,397.6765079,0.000123,2]
[338181538,1726367325283,10053.84182349,0.00014,2]
[338181543,1726367405083,583.88,0.00010959,2]
[338181595,1726367438512,-2293.9291793,0.0001451,2]
[338181597,1726367438521,-250.0,0.00014578,2]
[338181599,1726367438531,-300.0,0.00014601,2]
[338181601,1726367438541,-300.0,0.00014601,2]
[338181603,1726367438550,-24900.0,0.00014602,2]
[338181605,1726367438560,-1628.326309,0.0001476,2]
[338181607,1726367438569,-347.4820905,0.00014765,2]
[338181609,1726367438579,-6558.1591143,0.00014883,2]
[338181611,1726367438589,-2780.01557553,0.0001507,2]
[338181626,1726367440383,-50.42143047,0.0001507,2]
[338181627,1726367440395,-167.431646,0.00015154,2]
[338181628,1726367440406,-167.431646,0.00015214,2]
[338181629,1726367440418,-167.431646,0.00015275,2]
[338181630,1726367440429,-167.431646,0.00015336,2]
[338181631,1726367440440,-167.431646,0.00015396,2]
[338181632,1726367440451,-167.431646,0.00015457,2]
[338181633,1726367440461,-167.431646,0.00015518,2]
[338181634,1726367440474,-167.431646,0.00015579,2]
[338181635,1726367440485,-167.431646,0.00015639,2]
[338181636,1726367440496,-167.431646,0.000157,2]
[338181637,1726367440507,-167.431646,0.00015761,2]
[338181638,1726367440516,-167.431646,0.00015822,2]
[338181639,1726367440526,-167.431646,0.00015882,2]
[338181640,1726367440536,-167.431646,0.00015943,2]
[338181641,1726367440547,-420.0,0.00015987,2]
[338181642,1726367440558,-3000.0,0.00016,2]
[338181643,1726367440567,-3000.0,0.0001601,2]
[338181644,1726367440577,-3000.0,0.0001602,2]
[338181645,1726367440587,-3000.0,0.0001603,2]
[338181646,1726367440597,-3000.0,0.0001604,2]
[338181647,1726367440606,-3000.0,0.0001605,2]
[338181648,1726367440617,-3000.0,0.0001606,2]
[338181649,1726367440627,-420.0,0.00016061,2]
[338181650,1726367440639,-3000.0,0.0001607,2]
[338181651,1726367440650,-3000.0,0.0001608,2]
[338181652,1726367440660,-3000.0,0.0001609,2]
[338181653,1726367440670,-3000.0,0.000161,2]
[338181654,1726367440680,-3000.0,0.0001611,2]
[338181655,1726367440690,-3000.0,0.0001612,2]
[338181656,1726367440699,-3000.0,0.0001613,2]
[338181657,1726367440709,-3000.0,0.0001614,2]
[338181658,1726367440718,-4014.501859,0.0001615,2]
[338181659,1726367440728,-2578.18062485,0.000167,2]
[338181660,1726367440739,-587.0,0.00017504,2]
[338181661,1726367440751,-1998.90548805,0.000176,2]
[338181662,1726367440761,-587.0,0.00017667,2]
[338181663,1726367440770,-6345.79938906,0.00018416,2]
[338181664,1726367440780,-6010.26281656,0.00018447,2]
[338181665,1726367440790,-2224.6182154,0.00018623,2]
[338181666,1726367440800,-165.33644969,0.000187,2]
[338181667,1726367440810,-27568.37143838,0.0001879,2]
[338181668,1726367440941,-6889.39274422,0.0001879,2]
[338181669,1726367440950,-500.0,0.00018799,2]
[338181670,1726367440960,-500.0,0.00018799,2]
[338181671,1726367440970,-500.0,0.00018799,2]
[338181672,1726367440980,-500.0,0.00018799,2]
[338181673,1726367440989,-500.0,0.00018799,2]
[338181674,1726367440999,-526.3567182,0.00018799,2]
[338181675,1726367441008,-500.0,0.00018799,2]
[338181676,1726367441017,-500.0,0.00018799,2]
[338181677,1726367441027,-500.0,0.00018799,2]
[338181678,1726367441037,-500.0,0.00018799,2]
[338181679,1726367441046,-153.73926158,0.00018799,2]
[338181680,1726367441055,-500.0,0.00018799,2]
[338181681,1726367441064,-247.82823752,0.00018799,2]
[338181682,1726367441074,-500.0,0.00018799,2]
[338181683,1726367441084,-500.0,0.00018799,2]
[338181684,1726367441093,-322.13925987,0.00018799,2]
[338181685,1726367441102,-500.0,0.00018799,2]
[338181686,1726367441112,-500.0,0.00018799,2]
[338181687,1726367441121,-500.0,0.00018799,2]
[338181688,1726367441130,-500.0,0.00018799,2]
[338181689,1726367441139,-500.0,0.00018799,2]
[338181690,1726367441148,-500.0,0.00018799,2]
[338181691,1726367441157,-500.0,0.00018799,2]
[338181692,1726367441167,-500.0,0.00018799,2]
[338181693,1726367441176,-500.0,0.00018799,2]
[338181694,1726367441185,-500.0,0.00018799,2]
[338181695,1726367441195,-240.11839233,0.00018799,2]
[338181696,1726367441205,-500.0,0.00018799,2]
[338181697,1726367441215,-500.0,0.00018799,2]
[338181698,1726367441224,-500.0,0.00018799,2]
[338181699,1726367441234,-500.0,0.00018799,2]
[338181700,1726367441249,-500.0,0.00018799,2]
[338181701,1726367441259,-500.0,0.00018799,2]
[338181702,1726367441270,-500.0,0.00018799,2]
[338181703,1726367441282,-500.0,0.00018799,2]
[338181704,1726367441291,-500.0,0.00018799,2]
[338181705,1726367441302,-500.0,0.00018799,2]
[338181706,1726367441312,-500.0,0.00018799,2]
[338181707,1726367441323,-500.0,0.00018799,2]
[338181708,1726367441333,-500.0,0.00018799,2]
[338181709,1726367441343,-500.0,0.00018799,2]
[338181710,1726367441353,-500.0,0.00018799,2]
[338181711,1726367441362,-500.0,0.00018799,2]
[338181712,1726367441371,-13102.74484457,0.000188,2]
[338181723,1726367446445,-48550.09130814,0.000188,2]
[338181724,1726367446454,-1239.97204151,0.00019,2]
[338181725,1726367446468,-4276.19463593,0.00019006,2]
[338181726,1726367446478,-823.0,0.00019164,2]
[338181727,1726367446488,-175.3634816,0.00019178,2]
[338181728,1726367446500,-163.336442,0.00019178,2]
[338181729,1726367446511,-823.0,0.00019434,2]
[338181730,1726367446522,-165.33644968,0.00019507,2]
[338181732,1726367446531,-6345.79938906,0.00019644,2]
[338181733,1726367446542,-381.50664743,0.00019999,2]
[338181734,1726367446552,-500.0,0.00019999,2]
[338181735,1726367446562,-598.7741111,0.00019999,2]
[338181736,1726367446571,-500.0,0.00019999,2]
[338181737,1726367446581,-500.0,0.00019999,2]
[338181738,1726367446590,-500.0,0.00019999,2]
[338181739,1726367446600,-500.0,0.00019999,2]
[338181740,1726367446610,-495.31420613,0.00019999,2]
[338181741,1726367446620,-500.0,0.00019999,2]
[338181742,1726367446629,-500.0,0.00019999,2]
[338181743,1726367446638,-500.0,0.00019999,2]
[338181744,1726367446648,-522.15173763,0.00019999,2]
[338181745,1726367446657,-500.0,0.00019999,2]
[338181746,1726367446667,-500.0,0.00019999,2]
[338181747,1726367446676,-500.0,0.00019999,2]
[338181748,1726367446686,-500.0,0.00019999,2]
[338181749,1726367446696,-500.0,0.00019999,2]
[338181750,1726367446704,-500.0,0.00019999,2]
[338181751,1726367446714,-500.0,0.00019999,2]
[338181752,1726367446724,-278.76325107,0.00019999,2]
[338181753,1726367446734,-500.0,0.00019999,2]
[338181754,1726367446744,-500.0,0.00019999,2]
[338181755,1726367446754,-192.28908446,0.0002,2]
[338181756,1726367446763,-3461.12739498,0.0002,2]
[338181757,1726367446773,-4307.31763226,0.0002,2]
[338181758,1726367446782,-11864.02956741,0.0002,2]
[338181759,1726367449853,1000.0,0.00025999,60]
[338181763,1726367648263,193.381839,0.00013699,2]
[338181765,1726367845539,52490.0807482,0.00026,60]
[338181770,1726368109514,-3690.91376,0.000159,2]
[338181772,1726368141982,-162.846435,0.000159,2]
[338181776,1726368294327,183.712747,0.00013699,2]
[338181799,1726368632632,-3000.0,0.00016,2]
[338181801,1726368632644,-3000.0,0.0001601,2]
[338181802,1726368632653,-1511.61243525,0.0001602,2]
[338181804,1726368632666,-1488.38756475,0.0001602,2]
[338181805,1726368632675,-300.0,0.00016026,2]
[338181806,1726368632688,-300.0,0.00016026,2]
[338181807,1726368632698,-966.80001825,0.0001603,2]
[338181808,1726368632712,-2033.19998175,0.0001603,2]
[338181809,1726368632723,-719.71226641,0.00016289,2]
[338181810,1726368632738,-112.36718529,0.00016289,2]
[338181811,1726368632749,-385.62846859,0.00016858,2]
[338181829,1726368638828,-2285.96870941,0.00016858,2]
[338181830,1726368638840,-388.05129059,0.00017521,2]
[338181831,1726368640643,-31.94870941,0.00017521,2]
[338181832,1726368640654,-420.0,0.00017629,2]
[338181833,1726368640664,-6905.461053,0.00018666,2]
[338181834,1726368640674,-6905.461053,0.00018935,2]
[338181835,1726368640684,-4759.34954184,0.00019056,2]
[338181836,1726368640694,-587.0,0.00019156,2]
[338181837,1726368640704,-175.36348,0.00019178,2]
[338181838,1726368640715,-6905.461053,0.00019227,2]
[338181839,1726368640725,-587.0,0.00019391,2]
[338181840,1726368640735,-998.86370775,0.00019421,2]
[338181841,1726368640744,-6905.461053,0.00019536,2]
[338181842,1726368640754,-150.34184198,0.00019537,2]
[338181843,1726368640764,-165.33644968,0.00019866,2]
[338181844,1726368640774,-1506.36628838,0.0001989,2]
[338181845,1726368640786,-3478.90522725,0.00019911,3]
[338181846,1726368640864,-0.14770904,0.00019911,3]
[338181851,1726368643839,-4759.34954179,0.00019842,2]
[338181852,1726368643850,-226.208863,0.000199,2]
[338181853,1726368643860,-692.13092271,0.00019911,3]
[338181854,1726368643869,-500.0,0.00019955,2]
[338181855,1726368643880,-500.0,0.00019955,2]
[338181856,1726368643891,-500.0,0.00019955,2]
[338181857,1726368643901,-500.0,0.00019955,2]
[338181858,1726368643912,-1467.37600044,0.00019955,2]
[338181859,1726368643923,-526.3567182,0.00019955,2]
[338181860,1726368643934,-500.0,0.00019955,2]
[338181861,1726368643943,-500.0,0.00019955,2]
[338181862,1726368643953,-1467.37600044,0.00019955,2]
[338181863,1726368643962,-500.0,0.00019955,2]
[338181864,1726368643972,-500.0,0.00019955,2]
[338181865,1726368643982,-153.73926158,0.00019955,2]
[338181866,1726368643991,-1467.37600044,0.00019955,2]
[338181867,1726368644000,-247.82823752,0.00019955,2]
[338181868,1726368644010,-524.59917763,0.00019955,2]
[338181869,1726368644019,-1467.37600044,0.00019955,2]
[338181870,1726368644030,-1467.37600044,0.00019955,2]
[338181871,1726368644039,-1467.37600044,0.00019955,2]
[338181872,1726368644048,-1467.37600044,0.00019955,2]
[338181873,1726368644058,-1467.37600044,0.00019955,2]
[338181874,1726368644067,-1467.37600044,0.00019955,2]
[338181875,1726368644077,-1467.37600044,0.00019955,2]
[338181876,1726368644086,-1467.37600044,0.00019955,2]
[338181877,1726368644095,-1467.37600044,0.00019955,2]
[338181878,1726368644105,-1467.37600044,0.00019955,2]
[338181879,1726368644115,-1467.37600044,0.00019955,2]
[338181880,1726368644125,-1467.37600044,0.00019955,2]
[338181881,1726368644135,-1467.37600044,0.00019955,2]
[338181882,1726368644146,-1467.37600044,0.00019955,2]
[338181883,1726368644159,-1467.37600044,0.00019955,2]
[338181884,1726368644171,-1467.37600044,0.00019955,2]
[338181885,1726368644182,-1467.37600044,0.00019955,2]
[338181886,1726368644192,-1467.37600044,0.00019955,2]
[338181887,1726368644202,-1467.37600044,0.00019955,2]
[338181888,1726368644211,-1467.37600044,0.00019955,2]
[338181889,1726368644223,-1467.37600044,0.00019955,2]
[338181890,1726368644234,-1467.37600044,0.00019955,2]
[338181891,1726368644244,-1467.37600044,0.00019955,2]
[338181892,1726368644254,-1467.37600044,0.00019955,2]
[338181893,1726368644264,-1467.37600044,0.00019955,2]
[338181894,1726368644273,-1467.37600044,0.00019955,2]
[338181895,1726368644283,-1467.37600044,0.00019955,2]
[338181896,1726368644293,-1467.37600044,0.00019955,2]
[338181897,1726368644302,-1467.37600044,0.00019955,2]
[338181898,1726368644311,-1467.37600044,0.00019955,2]
[338181899,1726368644320,-1467.37600044,0.00019955,2]
[338181900,1726368644330,-1467.37600044,0.00019955,2]
[338181901,1726368644341,-1467.37600044,0.00019955,2]
[338181902,1726368644353,-1467.37600044,0.00019955,2]
[338181903,1726368644364,-1467.37600044,0.00019955,2]
[338181904,1726368644375,-1467.37600044,0.00019955,2]
[338181905,1726368644386,-1467.37600044,0.00019955,2]
[338181906,1726368644396,-58.92072717,0.00019955,2]
[338181907,1726368644411,-955.0,0.00019955,2]
[338181912,1726368646529,-453.45527327,0.00019955,2]
[338181914,1726368646539,-1231.99472673,0.00019955,2]
[338181918,1726368975687,182.897094,0.00013699,2]
[338181924,1726369534730,173.752239,0.00013699,2]
[338181930,1726369838980,-500.0,0.000159,2]
[338181931,1726369838990,-258.54644461,0.000159,2]
[338181932,1726369839002,-150.0,0.00016,2]
[338181933,1726369839011,-1000.0,0.00017654,2]
[338181934,1726369839023,-1335.798589,0.00017654,2]
[338181935,1726369839034,-162.8464394,0.00017694,2]
[338181936,1726369839047,-300.0,0.00018431,2]
[338181937,1726369839058,-300.0,0.00018431,2]
[338181938,1726369839069,-6905.461053,0.00018432,2]
[338181939,1726369839081,-1000.0,0.00018432,2]
[338181940,1726369839092,-6905.461053,0.0001885,2]
[338181941,1726369839103,-165.33644968,0.0001889,2]
[338181942,1726369839113,-2000.0,0.0001889,2]
[338181943,1726369839122,-1000.0,0.000189,2]
[338181944,1726369839131,-998.86370775,0.00018978,2]
[338181945,1726369839140,-4423.59597831,0.00018979,5]
[338181946,1726369839150,-34813.5523183,0.00018979,3]
[338181947,1726369839158,-17602.17655456,0.00018979,3]
[338181948,1726369840807,-30952.18074124,0.00018979,3]
[338181951,1726369840818,-500.0,0.00018979,2]
[338181953,1726369840830,-267.0546532,0.00018979,2]
[338181955,1726369840839,-500.0,0.00018979,2]
[338181957,1726369840849,-500.0,0.00018979,2]
[338181959,1726369840859,-500.0,0.00018979,2]
[338181961,1726369840870,-500.0,0.00018979,2]
[338181963,1726369840881,-500.0,0.00018979,2]
[338181964,1726369840890,-500.0,0.00018979,2]
[338181965,1726369840901,-500.0,0.00018979,2]
[338181966,1726369840912,-500.0,0.00018979,2]
[338181967,1726369840921,-500.0,0.00018979,2]
[338181968,1726369840932,-500.0,0.00018979,2]
[338181969,1726369840942,-224.95546418,0.00018979,2]
[338181970,1726369840951,-500.0,0.00018979,2]
[338181971,1726369840961,-500.0,0.00018979,2]
[338181972,1726369840971,-500.0,0.00018979,2]
[338181973,1726369840985,-500.0,0.00018979,2]
[338181974,1726369840995,-500.0,0.00018979,2]
[338181975,1726369841004,-500.0,0.00018979,2]
[338181976,1726369841015,-500.0,0.00018979,2]
[338181977,1726369841026,-6.17989026,0.00018979,2]
[338181981,1726369844119,-493.82010974,0.00018979,2]
[338181982,1726369844129,-595.13427574,0.00018979,2]
[338181983,1726369844139,-500.0,0.00018979,2]
[338181984,1726369844151,-550.0,0.00018979,2]
[338181985,1726369844162,-500.0,0.00018979,2]
[338181986,1726369844173,-500.0,0.00018979,2]
[338181987,1726369844185,-500.0,0.00018979,2]
[338181988,1726369844194,-500.0,0.00018979,2]
[338181989,1726369844204,-500.0,0.00018979,2]
[338181990,1726369844214,-500.0,0.00018979,2]
[338181991,1726369844224,-500.0,0.00018979,2]
[338181992,1726369844235,-419.14187777,0.00018979,2]
[338181993,1726369844246,-500.0,0.00018979,2]
[338181994,1726369844255,-196.7199443,0.00018979,2]
[338181995,1726369844265,-565.50621634,0.00018979,2]
[338181996,1726369844275,-500.0,0.00018979,2]
[338181997,1726369844285,-200.0,0.00018979,2]
[338181998,1726369844294,-477.84242659,0.00018979,2]
[338182003,1726370033152,165.064627,0.00013699,2]
[338182004,1726370046143,200.0,0.00025999,60]
[338182028,1726370786831,165.064627,0.00013699,2]
[338182108,1726371038012,-200.0,0.00016,2]
[338182109,1726371038026,-200.0,0.00017,2]
[338182110,1726371038036,-667.899294,0.00017534,2]
[338182111,1726371038047,-3215.652552,0.00017814,2]
[338182112,1726371038060,-1105.1404327,0.00017814,2]
[338182113,1726371038071,-200.0,0.00018,2]
[338182114,1726371038082,-888.58954525,0.00018694,2]
[338182189,1726371043103,-1859.66337445,0.00018694,2]
[338182190,1726371043115,-153.0,0.000187,2]
[338182193,1726371043128,-300.0,0.00018758,2]
[338182194,1726371043140,-300.0,0.00018758,2]
[338182195,1726371043150,-3000.8788067,0.00018759,2]
[338182197,1726371046063,-1163.55204239,0.00018759,2]
[338182198,1726371046074,-13102.74484457,0.000188,2]
[338182199,1726371046084,-6791.95451509,0.00018803,2]
[338182200,1726371046095,-150.34184198,0.00018834,2]
[338182201,1726371046107,-1000.0,0.00018857,2]
[338182202,1726371046116,-1506.36628838,0.00018859,2]
[338182203,1726371046129,-66828.0265505,0.00018883,2]
[338182204,1726371046138,-500.0,0.00018935,2]
[338182205,1726371046148,-500.0,0.00018935,2]
[338182206,1726371046158,-500.0,0.00018935,2]
[338182207,1726371046167,-500.0,0.00018935,2]
[338182208,1726371046176,-500.0,0.00018935,2]
[338182209,1726371046186,-500.0,0.00018935,2]
[338182210,1726371046196,-500.0,0.00018935,2]
[338182211,1726371046205,-500.0,0.00018935,2]
[338182212,1726371046215,-500.0,0.00018935,2]
[338182213,1726371046225,-500.0,0.00018935,2]
[338182214,1726371046235,-500.0,0.00018935,2]
[338182215,1726371046246,-500.0,0.00018935,2]
[338182216,1726371046259,-500.0,0.00018935,2]
[338182217,1726371046268,-500.0,0.00018935,2]
[338182218,1726371046280,-500.0,0.00018935,2]
[338182219,1726371046290,-500.0,0.00018935,2]
[338182220,1726371046301,-500.0,0.00018935,2]
[338182221,1726371046312,-500.0,0.00018935,2]
[338182222,1726371046323,-500.0,0.00018935,2]
[338182223,1726371046333,-500.0,0.00018935,2]
[338182224,1726371046343,-500.0,0.00018935,2]
[338182225,1726371046353,-500.0,0.00018935,2]
[338182226,1726371046364,-500.0,0.00018935,2]
[338182227,1726371046373,-500.0,0.00018935,2]
[338182228,1726371046385,-500.0,0.00018935,2]
[338182229,1726371046395,-500.0,0.00018935,2]
[338182230,1726371046404,-500.0,0.00018935,2]
[338182231,1726371046414,-500.0,0.00018935,2]
[338182232,1726371046425,-500.0,0.00018935,2]
[338182233,1726371046434,-500.0,0.00018935,2]
[338182234,1726371046443,-500.0,0.00018935,2]
[338182235,1726371046453,-224.95546418,0.00018935,2]
[338182236,1726371046462,-965.58359781,0.00018935,2]
[338182237,1726371046472,-965.58359781,0.00018935,2]
[338182238,1726371046482,-965.58359781,0.00018935,2]
[338182239,1726371046492,-965.58359781,0.00018935,2]
[338182240,1726371046501,-965.58359781,0.00018935,2]
[338182241,1726371046512,-965.58359781,0.00018935,2]
[338182242,1726371046523,-965.58359781,0.00018935,2]
[338182243,1726371046532,-965.58359781,0.00018935,2]
[338182244,1726371046543,-965.58359781,0.00018935,2]
[338182245,1726371046554,-965.58359781,0.00018935,2]
[338182246,1726371046565,-965.58359781,0.00018935,2]
[338182247,1726371046577,-965.58359781,0.00018935,2]
[338182248,1726371046588,-965.58359781,0.00018935,2]
[338182249,1726371046598,-965.58359781,0.00018935,2]
[338182250,1726371046609,-965.58359781,0.00018935,2]
[338182251,1726371046620,-965.58359781,0.00018935,2]
[338182252,1726371046632,-965.58359781,0.00018935,2]
[338182253,1726371046642,-965.58359781,0.00018935,2]
[338182254,1726371046652,-965.58359781,0.00018935,2]
[338182256,1726371046661,-965.58359781,0.00018935,2]
[338182257,1726371046671,-965.58359781,0.00018935,2]
[338182258,1726371046681,-965.58359781,0.00018935,2]
[338182259,1726371046691,-965.58359781,0.00018935,2]
[338182260,1726371046700,-965.58359781,0.00018935,2]
[338182261,1726371046713,-965.58359781,0.00018935,2]
[338182262,1726371046724,-965.58359781,0.00018935,2]
[338182263,1726371046736,-965.58359781,0.00018935,2]
[338182264,1726371046746,-965.58359781,0.00018935,2]
[338182265,1726371046756,-965.58359781,0.00018935,2]
[338182266,1726371046767,-965.58359781,0.00018935,2]
[338182267,1726371046777,-965.58359781,0.00018935,2]
[338182268,1726371046789,-965.58359781,0.00018935,2]
[338182269,1726371046799,-965.58359781,0.00018935,2]
[338182270,1726371046811,-965.58359781,0.00018935,2]
[338182271,1726371046821,-965.58359781,0.00018935,2]
[338182272,1726371046830,-965.58359781,0.00018935,2]
[338182273,1726371046840,-2211.79798916,0.00018936,5]
[338182274,1726371046853,-151.0,0.00018936,2]
[338182275,1726371046863,-151.0,0.00018936,2]
[338182276,1726371046872,-151.0,0.00018936,2]
[338182277,1726371046885,-152.285321,0.00018936,2]
[338182278,1726371046896,-151.0,0.00018936,2]
[338182279,1726371046905,-151.0,0.00018936,2]
[338182280,1726371046916,-151.0,0.00018936,2]
[338182281,1726371046927,-151.0,0.00018936,2]
[338182282,1726371046938,-151.0,0.00018936,2]
[338182283,1726371046948,-151.0,0.00018936,2]
[338182284,1726371046957,-214.94216,0.00018936,2]
[338182285,1726371046967,-214.94216,0.00018936,2]
[338182286,1726371046978,-214.94216,0.00018936,2]
[338182287,1726371046988,-214.94216,0.00018936,2]
[338182288,1726371046997,-214.94216,0.00018936,2]
[338182289,1726371047008,-214.94216,0.00018936,2]
[338182290,1726371047018,-4000.0,0.00018936,2]
[338182291,1726371047028,-4000.0,0.00018936,2]
[338182292,1726371047038,-4000.0,0.00018936,2]
[338182293,1726371047047,-2787.15837055,0.00018936,2]
[338182302,1726371576841,165.064627,0.00013699,2]
[338182331,1726372157729,165.064627,0.00013699,2]
[338182370,1726372238035,-184.0671651,0.00016247,2]
[338182371,1726372238045,-1116.13216569,0.00017,2]
[338182372,1726372238055,-4828.2182825,0.00017256,2]
[338182373,1726372238064,-333.949647,0.00017317,2]
[338182374,1726372238074,-159.369967,0.00017328,2]
[338182375,1726372238083,-159.369967,0.00017553,2]
[338182376,1726372238092,-159.369967,0.00017779,2]
[338182377,1726372238102,-1000.0,0.00018,2]
[338182378,1726372238113,-159.369967,0.00018005,2]
[338182379,1726372238123,-159.369967,0.0001823,2]